fUST/lending_fUST_20251001
["ID","MTS","AMOUNT","RATE_DAILY","PERIOD"]
[388653188,1759300264373,-500.0,0.00021369,2]
[388653189,1759300264383,-378.74249108,0.00021369,2]
[388653190,1759300264393,-553.53,0.00021369,2]
[388653191,1759300264402,-500.0,0.00021369,2]
[388653192,1759300264412,-515.74,0.00021369,2]
[388653193,1759300264421,-153.72855784,0.00021369,2]
[388653194,1759300264431,-500.0,0.00021369,2]
[388653195,1759300264441,-1250.0,0.00021369,2]
[388653196,1759300264451,-500.0,0.00021369,2]
[388653197,1759300264460,-513.86,0.00021369,2]
[388653198,1759300264470,-500.0,0.00021369,2]
[388653199,1759300264480,-500.0,0.00021369,2]
[388653200,1759300264490,-500.0,0.00021369,2]
[388653201,1759300264499,-561.73,0.00021369,2]
[388653202,1759300264508,-500.0,0.00021369,2]
[388653203,1759300264519,-500.0,0.00021369,2]
[388653204,1759300264530,-500.0,0.00021369,2]
[388653205,1759300264540,-500.0,0.00021369,2]
[388653206,1759300264550,-500.0,0.00021369,2]
[388653207,1759300264559,-500.0,0.00021369,2]
[388653208,1759300264568,-500.0,0.00021369,2]
[388653209,1759300264578,-500.0,0.00021369,2]
[388653210,1759300264587,-500.0,0.00021369,2]
[388653211,1759300264596,-483.31466835,0.00021369,2]
[388653212,1759300264606,-524.18,0.00021369,2]
[388653213,1759300264616,-500.0,0.00021369,2]
[388653214,1759300264625,-500.0,0.00021369,2]
[388653215,1759300264635,-500.0,0.00021369,2]
[388653216,1759300264645,-500.0,0.00021369,2]
[388653217,1759300264656,-500.0,0.00021369,2]
[388653218,1759300264665,-646.25,0.00021369,2]
[388653219,1759300264675,-539.33,0.00021369,2]
[388653220,1759300264684,-500.0,0.00021369,2]
[388653221,1759300264693,-657.79,0.00021369,2]
[388653222,1759300264703,-500.0,0.00021369,2]
[388653223,1759300264712,-500.0,0.00021369,2]
[388653224,1759300264721,-1606.71,0.00021369,2]
[388653225,1759300264735,-686.68,0.00021369,2]
[388653226,1759300264745,-2286.35,0.00021369,2]
[388653227,1759300264755,-1437.67,0.00021369,2]
[388653228,1759300264764,-500.0,0.00021369,2]
[388653229,1759300264773,-1047.18,0.00021369,2]
[388653230,1759300264782,-1014.26,0.00021369,2]
[388653231,1759300264792,-500.0,0.00021369,2]
[388653232,1759300264801,-500.0,0.00021369,2]
[388653233,1759300264811,-2286.01,0.00021369,2]
[388653234,1759300264820,-2031.62,0.00021369,2]
[388653235,1759300264830,-500.0,0.00021369,2]
[388653236,1759300264840,-500.0,0.00021369,2]
[388653237,1759300264849,-168.0,0.00021376,2]
[388653238,1759300264858,-261.218735,0.000214,10]
[388653239,1759300264868,-1113.5524,0.000214,2]
[388653240,1759300264878,-605.54277074,0.00021421,2]
[388653241,1759300264887,-1005.97906678,0.00021421,2]
[388653242,1759300264897,-500.0,0.00021438,2]
[388653243,1759300264907,-1536.69094389,0.00021468,2]
[388653244,1759300264917,-1046.22359938,0.00021468,2]
[388653245,1759300264926,-3946.97671702,0.000215,2]
[388653246,1759300264936,-1030.96419827,0.00021568,2]
[388653247,1759300264945,-1507.43507387,0.00021568,2]
[388653248,1759300264954,-1500.0,0.00021568,2]
[388653249,1759300264963,-502.37760947,0.00021568,2]
[388653250,1759300264973,-510.21991756,0.00021568,2]
[388653251,1759300264983,-260.0,0.00021571,2]
[388653252,1759300264992,-500.0,0.00021572,2]
[388653253,1759300265002,-500.0,0.00021572,2]
[388653254,1759300265011,-520.0,0.00021572,3]
[388653255,1759300265020,-500.0,0.00021572,2]
[388653256,1759300265030,-500.0,0.00021572,2]
[388653257,1759300265039,-500.0,0.00021572,2]
[388653258,1759300265048,-500.0,0.00021572,2]
[388653259,1759300265058,-591.84,0.00021572,2]
[388653260,1759300265067,-813.58,0.00021572,2]
[388653261,1759300265077,-752.21,0.00021572,2]
[388653262,1759300265086,-500.0,0.00021572,2]
[388653263,1759300265096,-725.57,0.00021572,2]
[388653264,1759300265105,-601.52,0.00021572,2]
[388653265,1759300265114,-500.0,0.00021572,2]
[388653266,1759300265123,-500.0,0.00021572,2]
[388653267,1759300265132,-500.0,0.00021572,2]
[388653268,1759300265141,-500.0,0.00021572,2]
[388653269,1759300265150,-500.0,0.00021572,2]
[388653270,1759300265159,-500.0,0.00021572,2]
[388653271,1759300265168,-415.80825854,0.00021572,2]
[388653272,1759300265177,-500.0,0.00021572,2]
[388653273,1759300265186,-500.0,0.00021572,2]
[388653274,1759300265194,-500.0,0.00021572,2]
[388653275,1759300265203,-500.0,0.00021572,2]
[388653276,1759300265212,-500.0,0.00021572,2]
[388653277,1759300265221,-500.0,0.00021572,2]
[388653278,1759300265230,-500.0,0.00021572,2]
[388653279,1759300265238,-500.0,0.00021572,2]
[388653280,1759300265247,-507.46807209,0.00021572,2]
[388653281,1759300265256,-500.0,0.00021572,2]
[388653282,1759300265265,-500.0,0.00021572,2]
[388653283,1759300265274,-500.0,0.00021572,2]
[388653284,1759300265283,-1778.41,0.00021572,2]
[388653285,1759300265293,-500.0,0.00021572,2]
[388653286,1759300265302,-500.0,0.00021572,2]
[388653287,1759300265310,-500.0,0.00021572,2]
[388653288,1759300265319,-500.0,0.00021572,2]
[388653289,1759300265328,-500.0,0.00021572,2]
[388653290,1759300265337,-644.00709932,0.00021572,2]
[388653291,1759300265346,-500.0,0.00021572,2]
[388653292,1759300265355,-369.33444499,0.00021572,2]
[388653293,1759300265364,-600.2,0.00021572,2]
[388653294,1759300265373,-679.62,0.00021572,2]
[388653295,1759300265382,-500.0,0.00021572,2]
[388653296,1759300265391,-500.0,0.00021572,2]
[388653297,1759300265400,-733.7,0.00021572,2]
[388653298,1759300265410,-500.0,0.00021572,2]
[388653299,1759300265419,-500.0,0.00021572,2]
[388653300,1759300265428,-800.55,0.00021572,2]
[388653301,1759300265436,-2172.05,0.00021572,2]
[388653302,1759300265446,-588.76724094,0.00021572,2]
[388653303,1759300265455,-500.0,0.00021572,2]
[388653304,1759300265463,-500.0,0.00021572,2]
[388653305,1759300265472,-500.0,0.00021572,2]
[388653306,1759300265482,-770.05,0.00021572,2]
[388653307,1759300265492,-500.0,0.00021572,2]
[388653308,1759300265501,-500.0,0.00021572,2]
[388653309,1759300265510,-500.0,0.00021572,2]
[388653310,1759300265521,-500.0,0.00021572,2]
[388653311,1759300265531,-500.0,0.00021572,2]
[388653312,1759300265539,-527.39,0.00021572,2]
[388653313,1759300265549,-610.31,0.00021572,2]
[388653314,1759300265558,-578.69,0.00021572,2]
[388653315,1759300265567,-500.0,0.00021572,2]
[388653316,1759300265576,-500.0,0.00021572,2]
[388653317,1759300265585,-500.0,0.00021572,2]
[388653318,1759300265594,-500.0,0.00021572,2]
[388653319,1759300265603,-500.65,0.00021572,2]
[388653320,1759300265612,-996.5,0.00021572,2]
[388653321,1759300265622,-168.0,0.00021576,2]
[388653322,1759300265631,-2000.0,0.00021616,2]
[388653323,1759300265640,-2000.0,0.00021616,2]
[388653324,1759300265649,-151.0,0.00021631,2]
[388653325,1759300265659,-500.0,0.00021637,2]
[388653326,1759300265668,-237.78895889,0.00021637,2]
[388653327,1759300265677,-583.75853418,0.00021637,2]
[388653328,1759300265686,-500.0,0.00021637,2]
[388653329,1759300265696,-500.0,0.00021639,2]
[388653330,1759300265705,-500.0,0.00021639,2]
[388653331,1759300265714,-633.83,0.00021639,2]
[388653332,1759300265724,-500.0,0.00021639,2]
[388653333,1759300265738,-1834.41,0.00021639,2]
[388653334,1759300265747,-2584.74,0.00021639,2]
[388653335,1759300265756,-500.0,0.00021639,2]
[388653336,1759300265766,-3037.8,0.00021639,2]
[388653337,1759300265777,-1577.62,0.00021639,2]
[388653338,1759300265786,-1290.34,0.00021639,2]
[388653339,1759300265795,-990.8,0.00021639,2]
[388653340,1759300265806,-606.82,0.00021639,2]
[388653341,1759300265816,-624.91,0.00021639,2]
[388653342,1759300265825,-2838.9,0.00021639,2]
[388653343,1759300265834,-500.0,0.00021639,2]
[388653344,1759300265843,-500.0,0.00021639,2]
[388653345,1759300265853,-293.36416222,0.0002164,3]
[388653346,1759300265863,-976.71,0.0002164,2]
[388653347,1759300265872,-500.0,0.0002164,2]
[388653348,1759300265882,-500.0,0.0002164,2]
[388653349,1759300265892,-500.0,0.0002164,2]
[388653350,1759300265903,-500.0,0.0002164,2]
[388653351,1759300265913,-532.24,0.0002164,2]
[388653352,1759300265922,-696.54,0.0002164,2]
[388653353,1759300265933,-599.84,0.0002164,2]
[388653354,1759300265942,-500.0,0.0002164,2]
[388653355,1759300265951,-1595.27,0.0002164,2]
[388653356,1759300265960,-1044.96,0.0002164,2]
[388653357,1759300265969,-816.6,0.0002164,2]
[388653358,1759300265979,-500.0,0.0002164,2]
[388653359,1759300265988,-500.0,0.0002164,2]
[388653360,1759300265997,-500.0,0.0002164,2]
[388653361,1759300266007,-2133.99,0.0002164,2]
[388653362,1759300266016,-790.26,0.0002164,2]
[388653363,1759300266025,-500.0,0.0002164,2]
[388653364,1759300266035,-1073.26,0.0002164,2]
[388653365,1759300266044,-2985.05,0.0002164,2]
[388653366,1759300266053,-1203.65,0.0002164,2]
[388653367,1759300266062,-500.0,0.0002164,2]
[388653368,1759300266071,-1345.4,0.0002164,2]
[388653369,1759300266080,-1844.27,0.0002164,2]
[388653370,1759300266090,-744.0,0.0002164,2]
[388653371,1759300266099,-500.0,0.0002164,2]
[388653372,1759300266108,-2722.47,0.0002164,2]
[388653373,1759300266117,-704.37,0.0002164,2]
[388653374,1759300266127,-643.28,0.0002164,2]
[388653375,1759300266136,-2310.74,0.0002164,2]
[388653376,1759300266145,-500.0,0.0002164,2]
[388653377,1759300266155,-588.85,0.0002164,2]
[388653378,1759300266165,-591.97,0.0002164,2]
[388653379,1759300266175,-738.55,0.0002164,2]
[388653380,1759300266184,-1055.04,0.0002164,2]
[388653381,1759300266193,-860.04,0.0002164,2]
[388653382,1759300266202,-500.0,0.0002164,2]
[388653383,1759300266212,-500.0,0.0002164,2]
[388653384,1759300266221,-2129.67,0.0002164,2]
[388653385,1759300266232,-594.42,0.0002164,2]
[388653386,1759300266241,-500.0,0.0002164,2]
[388653387,1759300266250,-1943.54,0.0002164,2]
[388653388,1759300266260,-3021.33,0.0002164,2]
[388653389,1759300266269,-542.34,0.0002164,2]
[388653390,1759300266279,-266.38220715,0.00021641,2]
[388653391,1759300266289,-500.0,0.00021641,2]
[388653392,1759300266298,-500.0,0.00021641,2]
[388653393,1759300266307,-271.85679589,0.00021641,2]
[388653394,1759300266318,-1326.54,0.00021641,2]
[388653395,1759300266327,-500.0,0.00021641,2]
[388653396,1759300266336,-500.0,0.00021641,2]
[388653397,1759300266346,-1228.09,0.00021641,2]
[388653398,1759300266355,-523.58,0.00021641,2]
[388653399,1759300266364,-503.71,0.00021641,2]
[388653400,1759300266374,-655.06,0.00021641,2]
[388653401,1759300266383,-500.0,0.00021641,2]
[388653402,1759300266391,-500.0,0.00021641,2]
[388653403,1759300266402,-1189.11,0.00021641,2]
[388653404,1759300266417,-1363.71,0.00021641,2]
[388653405,1759300266426,-509.24,0.00021641,2]
[388653406,1759300266435,-500.0,0.00021641,2]
[388653407,1759300266444,-600.5,0.00021641,2]
[388653408,1759300266454,-500.0,0.00021641,2]
[388653409,1759300266463,-616.41,0.00021641,2]
[388653410,1759300266472,-1174.06,0.00021641,2]
[388653411,1759300266482,-775.36,0.00021641,2]
[388653412,1759300266493,-500.0,0.00021641,2]
[388653413,1759300266503,-900.61,0.00021641,2]
[388653414,1759300266512,-767.43,0.00021641,2]
[388653415,1759300266522,-500.0,0.00021641,2]
[388653416,1759300266532,-775.18,0.00021641,2]
[388653417,1759300266543,-558.56,0.00021641,2]
[388653418,1759300266552,-709.03,0.00021641,2]
[388653419,1759300266562,-609.6,0.00021641,2]
[388653420,1759300266571,-556.02,0.00021641,2]
[388653421,1759300266580,-814.04,0.00021641,2]
[388653422,1759300266590,-1000.92,0.00021641,2]
[388653423,1759300266599,-1230.23,0.00021641,2]
[388653424,1759300266608,-1305.99,0.00021641,2]
[388653425,1759300266617,-694.39,0.00021641,2]
[388653426,1759300266626,-555.89,0.00021641,2]
[388653427,1759300266635,-512.35,0.00021641,2]
[388653428,1759300266645,-500.0,0.00021641,2]
[388653429,1759300266656,-848.29,0.00021641,2]
[388653430,1759300266665,-2483.05,0.00021641,2]
[388653431,1759300266674,-500.0,0.00021641,2]
[388653432,1759300266684,-500.0,0.00021641,2]
[388653433,1759300266693,-1323.84,0.00021641,2]
[388653434,1759300266703,-1221.22,0.00021641,2]
[388653435,1759300266712,-1683.66,0.00021641,2]
[388653436,1759300266722,-500.0,0.00021641,2]
[388653437,1759300266734,-893.56,0.00021641,2]
[388653438,1759300266748,-1673.81,0.00021641,2]
[388653439,1759300266759,-1460.82,0.00021641,2]
[388653440,1759300266769,-847.13,0.00021641,2]
[388653441,1759300266779,-500.0,0.00021641,2]
[388653442,1759300266788,-500.0,0.00021641,2]
[388653443,1759300266797,-500.0,0.00021641,2]
[388653444,1759300266807,-2814.77,0.00021641,2]
[388653445,1759300266819,-500.0,0.00021641,2]
[388653446,1759300266828,-500.0,0.00021641,2]
[388653447,1759300266837,-816.61,0.00021641,2]
[388653448,1759300266847,-649.89,0.00021641,2]
[388653449,1759300266856,-500.0,0.00021641,2]
[388653450,1759300266865,-1006.68,0.00021641,2]
[388653451,1759300266874,-439.0,0.00021642,2]
[388653452,1759300266883,-500.0,0.00021642,2]
[388653453,1759300266893,-3416.19,0.00021642,2]
[388653454,1759300266903,-943.13,0.00021642,2]
[388653455,1759300266912,-546.02,0.00021642,2]
[388653456,1759300267029,-500.0,0.00021642,2]
[388653457,1759300267039,-1377.23,0.00021642,2]
[388653458,1759300267048,-500.0,0.00021642,2]
[388653459,1759300267057,-500.0,0.00021642,2]
[388653460,1759300267067,-659.67,0.00021642,2]
[388653461,1759300267076,-830.66,0.00021642,2]
[388653462,1759300267086,-764.52,0.00021642,2]
[388653463,1759300267096,-500.0,0.00021642,2]
[388653464,1759300267105,-500.0,0.00021642,2]
[388653465,1759300267115,-501.81,0.00021642,2]
[388653466,1759300267125,-500.0,0.00021642,2]
[388653467,1759300267134,-736.74,0.00021642,2]
[388653468,1759300267143,-500.0,0.00021642,2]
[388653469,1759300267154,-2706.95,0.00021642,2]
[388653470,1759300267163,-500.0,0.00021642,2]
[388653471,1759300267172,-598.42,0.00021642,2]
[388653472,1759300267181,-1415.76,0.00021642,2]
[388653473,1759300267191,-613.83,0.00021642,2]
[388653474,1759300267201,-632.86,0.00021642,2]
[388653475,1759300267210,-1640.0,0.00021642,2]
[388653476,1759300267219,-500.0,0.00021643,2]
[388653477,1759300267229,-713.88,0.00021643,2]
[388653478,1759300267238,-500.0,0.00021643,2]
[388653479,1759300267247,-553.53,0.00021643,2]
[388653480,1759300267256,-530.87716305,0.00021643,2]
[388653481,1759300267265,-515.74,0.00021643,2]
[388653482,1759300267275,-500.0,0.00021643,2]
[388653483,1759300267285,-1250.0,0.00021643,2]
[388653484,1759300267294,-500.0,0.00021643,2]
[388653485,1759300267303,-513.86,0.00021643,2]
[388653486,1759300267312,-500.0,0.00021643,2]
[388653487,1759300267322,-500.0,0.00021643,2]
[388653488,1759300267331,-500.0,0.00021643,2]
[388653489,1759300267340,-561.73,0.00021643,2]
[388653490,1759300267349,-490.91078426,0.00021643,2]
[388653491,1759300267359,-500.0,0.00021643,2]
[388653492,1759300267368,-500.0,0.00021643,2]
[388653493,1759300267377,-500.0,0.00021643,2]
[388653494,1759300267387,-500.0,0.00021643,2]
[388653495,1759300267398,-185.7088272,0.00021643,2]
[388653496,1759300267408,-500.0,0.00021643,2]
[388653497,1759300267418,-500.0,0.00021643,2]
[388653498,1759300267427,-500.0,0.00021643,2]
[388653499,1759300267436,-524.18,0.00021643,2]
[388653500,1759300267445,-500.0,0.00021643,2]
[388653501,1759300267460,-500.0,0.00021643,2]
[388653502,1759300267470,-500.0,0.00021643,2]
[388653503,1759300267479,-500.0,0.00021643,2]
[388653504,1759300267488,-500.0,0.00021643,2]
[388653505,1759300267498,-646.25,0.00021643,2]
[388653506,1759300267507,-539.33,0.00021643,2]
[388653507,1759300267518,-507.48478079,0.00021643,2]
[388653508,1759300267527,-657.79,0.00021643,2]
[388653509,1759300267537,-500.0,0.00021643,2]
[388653510,1759300267546,-364.23478486,0.00021643,2]
[388653511,1759300267555,-1606.71,0.00021643,2]
[388653512,1759300267565,-686.68,0.00021643,2]
[388653513,1759300267574,-2286.35,0.00021643,2]
[388653514,1759300267583,-1437.67,0.00021643,2]
[388653515,1759300267592,-500.0,0.00021643,2]
[388653516,1759300267602,-1047.18,0.00021643,2]
[388653517,1759300267611,-1014.26,0.00021643,2]
[388653518,1759300267620,-500.0,0.00021643,2]
[388653519,1759300267630,-500.0,0.00021643,2]
[388653520,1759300267639,-2286.01,0.00021643,2]
[388653521,1759300267648,-2031.62,0.00021643,2]
[388653522,1759300267658,-500.0,0.00021643,2]
[388653523,1759300267667,-500.0,0.00021643,2]
[388653524,1759300267677,-1025.612331,0.00021668,2]
[388653525,1759300267686,-1500.0,0.00021668,2]
[388653526,1759300267696,-1500.0,0.00021668,2]
[388653527,1759300267705,-1500.0,0.00021668,2]
[388653528,1759300267714,-1500.0,0.00021668,2]
[388653529,1759300267723,-1106.43303815,0.00021668,2]
[388653530,1759300267738,-1500.0,0.00021668,2]
[388653531,1759300267748,-303.77075618,0.00021668,2]
[388653532,1759300267757,-1405.74390608,0.00021668,2]
[388653533,1759300267766,-240.64680277,0.00021668,2]
[388653534,1759300267777,-1500.0,0.00021668,2]
[388653535,1759300267786,-1500.0,0.00021668,2]
[388653536,1759300267795,-1500.0,0.00021668,2]
[388653537,1759300267805,-1001.40523686,0.00021668,2]
[388653538,1759300267814,-1026.78767285,0.00021668,2]
[388653539,1759300267824,-1112.78864037,0.00021688,2]
[388653540,1759300267833,-312.3433073,0.00021712,2]
[388653541,1759300267843,-1680.0,0.00021764,2]
[388653542,1759300267852,-420.0,0.00021764,2]
[388653543,1759300267861,-176.557,0.00021821,2]
[388653544,1759300267871,-168.0,0.00021823,2]
[388653545,1759300267880,-500.0,0.00021846,2]
[388653546,1759300267889,-609.09224749,0.00021846,2]
[388653547,1759300267898,-520.0,0.00021846,3]
[388653548,1759300267907,-500.0,0.00021846,2]
[388653549,1759300267917,-500.0,0.00021846,2]
[388653550,1759300267926,-500.0,0.00021846,2]
[388653551,1759300267935,-500.0,0.00021846,2]
[388653552,1759300267944,-591.84,0.00021846,2]
[388653553,1759300267953,-813.58,0.00021846,2]
[388653554,1759300267962,-752.21,0.00021846,2]
[388653555,1759300267972,-500.0,0.00021846,2]
[388653556,1759300267981,-725.57,0.00021846,2]
[388653557,1759300267990,-601.52,0.00021846,2]
[388653558,1759300267999,-500.0,0.00021846,2]
[388653559,1759300268008,-500.0,0.00021846,2]
[388653560,1759300268017,-500.0,0.00021846,2]
[388653561,1759300268026,-500.0,0.00021846,2]
[388653562,1759300268035,-500.0,0.00021846,2]
[388653563,1759300268044,-500.0,0.00021846,2]
[388653564,1759300268053,-500.0,0.00021846,2]
[388653565,1759300268062,-500.0,0.00021846,2]
[388653566,1759300268071,-500.0,0.00021846,2]
[388653567,1759300268080,-500.0,0.00021846,2]
[388653568,1759300268089,-500.0,0.00021846,2]
[388653569,1759300268098,-500.0,0.00021846,2]
[388653570,1759300268107,-500.0,0.00021846,2]
[388653571,1759300268117,-500.0,0.00021846,2]
[388653572,1759300268125,-500.0,0.00021846,2]
[388653573,1759300268134,-500.0,0.00021846,2]
[388653574,1759300268144,-500.0,0.00021846,2]
[388653575,1759300268153,-1778.41,0.00021846,2]
[388653576,1759300268164,-500.0,0.00021846,2]
[388653577,1759300268173,-500.0,0.00021846,2]
[388653578,1759300268182,-500.0,0.00021846,2]
[388653579,1759300268192,-500.0,0.00021846,2]
[388653580,1759300268201,-500.0,0.00021846,2]
[388653581,1759300268210,-500.0,0.00021846,2]
[388653582,1759300268220,-600.2,0.00021846,2]
[388653583,1759300268229,-679.62,0.00021846,2]
[388653584,1759300268238,-156.17428807,0.00021846,2]
[388653585,1759300268247,-500.0,0.00021846,2]
[388653586,1759300268256,-733.7,0.00021846,2]
[388653587,1759300268265,-500.0,0.00021846,2]
[388653588,1759300268274,-500.0,0.00021846,2]
[388653589,1759300268284,-800.55,0.00021846,2]
[388653590,1759300268293,-2172.05,0.00021846,2]
[388653591,1759300268302,-500.0,0.00021846,2]
[388653592,1759300268311,-500.0,0.00021846,2]
[388653593,1759300268320,-500.0,0.00021846,2]
[388653594,1759300268330,-770.05,0.00021846,2]
[388653595,1759300268339,-500.0,0.00021846,2]
[388653596,1759300268349,-500.0,0.00021846,2]
[388653597,1759300268359,-500.0,0.00021846,2]
[388653598,1759300268368,-500.0,0.00021846,2]
[388653599,1759300268377,-500.0,0.00021846,2]
[388653600,1759300268386,-527.39,0.00021846,2]
[388653601,1759300268395,-610.31,0.00021846,2]
[388653602,1759300268405,-578.69,0.00021846,2]
[388653603,1759300268415,-500.0,0.00021846,2]
[388653604,1759300268424,-500.0,0.00021846,2]
[388653605,1759300268434,-500.0,0.00021846,2]
[388653606,1759300268443,-500.0,0.00021846,2]
[388653607,1759300268452,-500.65,0.00021846,2]
[388653608,1759300268461,-996.5,0.00021846,2]
[388653609,1759300268470,-1680.0,0.00021867,2]
[388653610,1759300268480,-249.0,0.00021903,2]
[388653611,1759300268489,-322.21,0.00021903,2]
[388653612,1759300268498,-500.0,0.00021911,2]
[388653613,1759300268508,-500.0,0.00021911,2]
[388653614,1759300268517,-500.0,0.00021913,2]
[388653615,1759300268527,-500.0,0.00021913,2]
[388653616,1759300268536,-633.83,0.00021913,2]
[388653617,1759300268545,-500.0,0.00021913,2]
[388653618,1759300268555,-1834.41,0.00021913,2]
[388653619,1759300268564,-2584.74,0.00021913,2]
[388653620,1759300268574,-500.0,0.00021913,2]
[388653621,1759300268583,-3037.8,0.00021913,2]
[388653622,1759300268593,-1577.62,0.00021913,2]
[388653623,1759300268602,-1290.34,0.00021913,2]
[388653624,1759300268612,-990.8,0.00021913,2]
[388653625,1759300268621,-606.82,0.00021913,2]
[388653626,1759300268631,-624.91,0.00021913,2]
[388653627,1759300268641,-2838.9,0.00021913,2]
[388653628,1759300268650,-500.0,0.00021913,2]
[388653629,1759300268662,-500.0,0.00021913,2]
[388653630,1759300268671,-976.71,0.00021914,2]
[388653631,1759300268681,-447.19990843,0.00021914,2]
[388653632,1759300268691,-500.0,0.00021914,2]
[388653633,1759300268700,-500.0,0.00021914,2]
[388653634,1759300268709,-500.0,0.00021914,2]
[388653635,1759300268719,-532.24,0.00021914,2]
[388653636,1759300268728,-696.54,0.00021914,2]
[388653637,1759300268744,-599.84,0.00021914,2]
[388653638,1759300268754,-260.61538826,0.00021914,2]
[388653639,1759300268765,-1595.27,0.00021914,2]
[388653640,1759300268775,-1044.96,0.00021914,2]
[388653641,1759300268786,-816.6,0.00021914,2]
[388653642,1759300268795,-500.0,0.00021914,2]
[388653643,1759300268805,-500.0,0.00021914,2]
[388653644,1759300268817,-500.0,0.00021914,2]
[388653645,1759300268826,-2133.99,0.00021914,2]
[388653646,1759300268836,-790.26,0.00021914,2]
[388653647,1759300268845,-500.0,0.00021914,2]
[388653648,1759300268855,-1073.26,0.00021914,2]
[388653649,1759300268864,-2985.05,0.00021914,2]
[388653650,1759300268874,-1203.65,0.00021914,2]
[388653651,1759300268884,-500.0,0.00021914,2]
[388653652,1759300268893,-1345.4,0.00021914,2]
[388653653,1759300268902,-1844.27,0.00021914,2]
[388653654,1759300268913,-744.0,0.00021914,2]
[388653655,1759300268923,-500.0,0.00021914,2]
[388653656,1759300268932,-2722.47,0.00021914,2]
[388653657,1759300268942,-704.37,0.00021914,2]
[388653658,1759300268951,-643.28,0.00021914,2]
[388653659,1759300268960,-2310.74,0.00021914,2]
[388653660,1759300268970,-500.0,0.00021914,2]
[388653661,1759300268980,-588.85,0.00021914,2]
[388653662,1759300268989,-591.97,0.00021914,2]
[388653663,1759300268998,-738.55,0.00021914,2]
[388653664,1759300269008,-1055.04,0.00021914,2]
[388653665,1759300269017,-860.04,0.00021914,2]
[388653666,1759300269027,-500.0,0.00021914,2]
[388653667,1759300269036,-500.0,0.00021914,2]
[388653668,1759300269045,-2129.67,0.00021914,2]
[388653669,1759300269054,-594.42,0.00021914,2]
[388653670,1759300269063,-500.0,0.00021914,2]
[388653671,1759300269072,-1943.54,0.00021914,2]
[388653672,1759300269081,-3021.33,0.00021914,2]
[388653673,1759300269091,-542.34,0.00021914,2]
[388653674,1759300269100,-500.0,0.00021915,2]
[388653675,1759300269109,-500.0,0.00021915,2]
[388653676,1759300269118,-445.00383559,0.00021915,2]
[388653677,1759300269128,-1326.54,0.00021915,2]
[388653678,1759300269137,-500.0,0.00021915,2]
[388653679,1759300269146,-500.0,0.00021915,2]
[388653680,1759300269156,-1228.09,0.00021915,2]
[388653681,1759300269166,-523.58,0.00021915,2]
[388653682,1759300269176,-503.71,0.00021915,2]
[388653683,1759300269186,-655.06,0.00021915,2]
[388653684,1759300269196,-500.0,0.00021915,2]
[388653685,1759300269206,-500.0,0.00021915,2]
[388653686,1759300269215,-1189.11,0.00021915,2]
[388653687,1759300269225,-1363.71,0.00021915,2]